bitfinex/quotes_ETHUSD_20250611
["timestamp","ask_amount","ask_price","bid_price","bid_amount"]
[1749675397899,9.119919,2817.2,2816.4,0.5460984]
[1749675398203,0.33253593,2817.1,2816.4,0.5460984]
[1749675398403,0.33253422,2817.1,2816.4,0.5460984]
[1749675398591,0.33253436,2817.1,2816.4,0.5460984]
[1749675398933,9.119919,2817.2,2816.4,0.5460984]
[1749675399139,0.33253662,2817.1,2816.4,0.5460984]
[1749675399301,0.7985,2817.2,2816.4,0.5460984]
[1749675399712,2.09268557,2817.2,2816.4,0.5460984]
[1749675400936,0.33253859,2817.1,2816.4,0.5460984]
[1749675401236,2.09268557,2817.2,2816.4,0.5460984]
[1749675402842,0.33253705,2817.1,2816.4,0.5460984]
[1749675403044,0.7985,2817.2,2816.4,0.5460984]
[1749675403337,0.33253963,2817.1,2816.4,0.5460984]
[1749675403504,0.7985,2817.2,2816.4,0.5460984]
[1749675404119,1.13103938,2817.2,2816.4,10.5460984]
[1749675404443,0.7985,2817.2,2816.5,1.9122519]
[1749675405043,4.4345,2817.2,2816.6,10.8244]
[1749675405601,0.33257915,2817.1,2816.6,10.8244]
[1749675405946,4.4345,2817.2,2816.6,10.8244]
[1749675407439,0.1768,2817.0,2816.6,10.8244]
[1749675407651,0.1768,2817.0,2816.7,0.5460984]
[1749675407818,0.1768,2817.0,2816.6,0.8244]
[1749675409959,0.1768,2817.0,2816.5,0.1768]
[1749675410133,0.8179,2816.9,2816.0,0.7879]
[1749675410335,0.1768,2816.7,2816.2,0.1768]
[1749675410928,0.1768,2816.7,2816.3,0.7809]
[1749675411262,0.1768,2816.7,2816.4,10.0]
[1749675411658,1.66577043,2817.1,2816.4,10.0]
[1749675411862,0.1768,2816.8,2816.3,0.9577]
[1749675412060,1.66577043,2817.1,2816.1,0.8153]
[1749675412061,8.321419,2817.0,2816.1,0.8153]
[1749675412362,0.1768,2816.7,2816.2,0.1768]
[1749675412862,0.1768,2816.7,2816.4,0.8203]
[1749675413063,0.85007043,2817.0,2816.4,0.8203]
[1749675413064,0.1768,2816.9,2816.4,0.9971]
[1749675414670,9.121419,2817.0,2816.2,0.759]
[1749675414879,0.1768,2816.7,2816.2,0.9358]
[1749675417304,0.1768,2816.7,2816.3,0.01137172]
[1749675419864,4.48607043,2816.9,2816.3,8.33279072]
[1749675420088,3.8128,2816.9,2816.3,0.18817172]
[1749675420281,4.66287043,2816.9,2816.3,0.18817172]
[1749675421188,3.8128,2816.9,2816.3,0.18817172]
[1749675421406,3.8128,2816.9,2816.3,8.50959072]
[1749675421578,3.8128,2816.9,2816.4,0.92685907]
[1749675421923,0.85007043,2817.1,2816.5,9.116019]
[1749675422214,4.5684,2817.2,2816.7,0.1768]
[1749675422572,4.5684,2817.2,2816.7,8.498219]
[1749675422573,0.1768,2817.2,2816.7,8.498219]
[1749675422872,3.636,2817.2,2816.9,0.9714]
[1749675423371,1.11733674,2817.4,2816.9,0.9714]
[1749675423692,3.636,2817.3,2816.9,0.9714]
[1749675424071,3.99673674,2817.4,2816.9,0.9714]
[1749675424271,0.36173674,2817.4,2816.9,1.15352219]
[1749675424466,3.99673674,2817.4,2816.9,1.15352219]
[1749675427386,3.99673674,2817.4,2817.0,0.0062632]
[1749675428003,3.81993674,2817.4,2817.1,0.1768]
[1749675428595,12.14135574,2817.4,2817.2,0.00626275]
[1749675428794,13.53366849,2817.4,2817.2,0.00626275]
[1749675429018,9.89866849,2817.4,2817.2,0.00626275]
[1749675430214,8.50635574,2817.4,2817.2,0.00626275]
[1749675431936,0.18493674,2817.4,2817.2,0.00626275]
[1749675432116,0.18493674,2817.4,2817.3,0.7519]
[1749675432420,3.635,2817.6,2817.3,0.9287]
[1749675432786,0.1768,2817.8,2817.3,0.9287]
[1749675433182,8.321419,2817.7,2817.3,0.9287]
[1749675433603,8.321419,2817.5,2817.3,0.1768]
[1749675434893,0.1768,2817.6,2817.1,0.9887]
[1749675435402,3.635,2817.6,2817.4,0.1768]
[1749675437136,11.956419,2817.6,2817.1,0.8119]
[1749675437443,12.133219,2817.6,2817.1,0.9887]
[1749675438637,8.321419,2817.2,2817.1,0.9887]
[1749675439024,5.8226219,2817.6,2817.1,0.9887]
[1749675439224,8.321419,2817.4,2817.1,0.9887]
[1749675439822,8.321419,2817.3,2817.1,0.9887]
[1749675441678,0.9743,2817.6,2817.1,0.9887]
[1749675441854,8.321419,2817.3,2817.1,0.9887]
[1749675443465,3.634,2817.4,2817.1,0.9887]
[1749675443657,8.321419,2817.4,2817.1,0.9887]
[1749675443862,11.955419,2817.4,2817.1,0.9887]
[1749675446962,11.955419,2817.4,2817.1,0.1768]
[1749675450563,8.321419,2817.4,2817.1,0.1768]
[1749675450764,3.634,2817.3,2817.1,0.1768]
[1749675451564,3.633,2817.4,2817.2,0.778]
[1749675451756,3.633,2817.4,2817.2,0.9548]
[1749675454128,8.321419,2817.3,2817.0,0.778]
[1749675454330,8.321419,2817.3,2817.0,0.9548]
[1749675454981,8.321419,2817.1,2817.0,0.1768]
[1749675455303,8.321419,2817.1,2816.7,0.1768]
[1749675455573,3.633,2817.0,2816.7,0.1768]
[1749675455774,8.321419,2816.9,2816.7,0.1768]
[1749675456548,3.633,2816.8,2816.7,0.1768]
[1749675457833,3.633,2816.8,2816.4,0.1768]
[1749675458087,8.321419,2816.7,2816.4,0.1768]
[1749675458269,3.633,2816.6,2816.4,0.1768]
[1749675460584,0.1768,2816.9,2816.4,0.1768]
[1749675460764,3.633,2816.9,2816.5,0.8051]
[1749675461081,3.633,2816.9,2816.6,0.1768]
[1749675466191,0.1768,2817.1,2816.7,0.7616]
[1749675467275,0.57627617,2817.1,2816.7,0.7616]
[1749675468577,0.1768,2817.1,2816.7,0.7616]
[1749675477941,8.321419,2816.8,2816.6,0.1768]
[1749675478236,8.321419,2816.7,2816.3,0.1768]
[1749675480307,8.321419,2816.5,2815.7,0.8026]
[1749675480632,4.4083,2816.6,2815.7,0.8026]
[1749675480633,0.7763,2816.6,2815.7,0.8026]
[1749675480932,3.632,2816.5,2815.8,0.8042]
[1749675481132,8.321419,2816.7,2816.0,0.8042]
[1749675481432,8.321419,2816.3,2815.6,0.7734]
[1749675481634,11.953419,2816.3,2815.6,0.7734]
[1749675482401,11.953419,2816.3,2815.7,0.00595502]
[1749675483129,8.321419,2816.0,2815.7,0.00595502]
[1749675483337,11.953419,2816.0,2815.7,0.00595502]
[1749675483896,13.9666609,2816.0,2815.7,0.00595502]
[1749675484342,2.0132419,2816.0,2815.7,0.00595502]
[1749675484516,3.632,2815.9,2815.7,0.00595502]
[1749675484922,11.953419,2815.9,2815.7,0.00595502]
[1749675486418,0.7766,2815.8,2815.7,0.00595502]
[1749675486612,0.7766,2815.4,2814.6,0.7935]
[1749675486815,8.321419,2814.9,2814.6,0.7935]
[1749675487023,3.633,2815.0,2814.6,0.7935]
[1749675487363,3.633,2814.9,2814.4,0.7935]
[1749675488349,8.321419,2814.8,2814.0,0.8195]
[1749675489853,3.633,2814.7,2814.1,10.0]
[1749675490274,3.633,2814.7,2814.3,0.1776]
[1749675493691,3.634,2814.6,2814.3,0.1776]
[1749675495357,0.1776,2814.8,2814.3,0.1776]
[1749675495573,3.634,2814.7,2814.3,0.1776]
[1749675496168,0.1776,2814.8,2814.3,0.1776]
[1749675496374,0.947,2815.2,2814.4,9.104019]
[1749675496674,0.1776,2815.0,2814.5,10.1776]
[1749675497430,3.634,2815.1,2814.7,0.1776]
[1749675498329,9.268419,2815.6,2814.8,0.7534]
[1749675498330,1.7066,2815.6,2814.8,0.7534]
[1749675498608,3.634,2815.2,2814.9,0.1776]
[1749675498774,3.8108,2815.4,2814.9,0.1776]
[1749675502620,3.634,2815.3,2814.9,0.1776]
[1749675504292,8.321419,2815.0,2814.9,0.1776]
[1749675504492,0.1776,2814.9,2814.4,0.8038]
[1749675504721,8.499019,2814.8,2814.3,0.1776]
[1749675509118,0.1776,2814.8,2814.3,0.1776]
[1749675509322,1.3909019,2814.8,2814.3,0.1776]
[1749675510010,8.871419,2814.6,2814.0,0.8108]
[1749675510344,0.1776,2814.4,2814.0,0.8108]
[1749675513606,0.1776,2814.4,2813.9,0.1776]
[1749675514036,0.7578,2814.3,2813.7,1.13507186]
[1749675514202,0.9354,2814.3,2813.8,0.1776]
[1749675518108,8.321419,2814.2,2813.8,0.1776]
[1749675518312,8.321419,2813.9,2813.3,4.67]
[1749675518635,0.1776,2813.5,2813.1,0.8215]
[1749675519845,0.1776,2813.5,2813.1,9.142919]
[1749675520245,0.757,2813.4,2812.8,9.079519]
[1749675520415,0.1776,2813.3,2813.0,8.321419]
[1749675521140,0.1776,2813.3,2812.8,0.9357]
[1749675521443,0.1776,2813.3,2812.9,8.321419]
[1749675523458,0.1776,2813.3,2812.9,10.0]
[1749675527037,0.1776,2813.3,2812.8,0.9357]
[1749675527328,1.0075,2813.3,2812.8,0.1776]
[1749675528226,9.4319109,2813.2,2812.7,0.1776]
[1749675528561,0.9328919,2813.2,2812.3,8.321419]
[1749675528881,0.1776,2813.0,2812.5,0.1776]
[1749675529021,0.1776,2813.0,2812.4,8.321419]
[1749675529225,3.8126,2813.2,2812.7,0.1776]
[1749675530363,3.635,2813.2,2812.4,8.321419]
[1749675530567,0.1776,2813.0,2812.5,0.1776]
[1749675530774,0.1776,2813.0,2812.2,10.8134]
[1749675530775,0.8067,2812.5,2811.3,0.753]
[1749675530931,11.956419,2812.4,2811.3,0.753]
[1749675531131,3.635,2812.3,2811.8,8.321419]
[1749675531326,4.4417,2812.5,2812.0,8.321419]
[1749675531579,4.98047,2812.5,2812.0,8.321419]
[1749675531934,4.98047,2812.5,2811.9,0.8281]
[1749675532131,4.98047,2812.5,2811.9,10.8281]
[1749675532475,4.98047,2812.5,2811.7,10.0]
[1749675532778,4.98147,2812.5,2811.7,10.0]
[1749675533276,1.142747,2812.4,2811.6,0.8281]
[1749675533443,0.592747,2812.4,2811.7,8.321419]
[1749675533647,0.8274,2813.1,2812.1,0.8281]
[1749675533865,0.8274,2813.1,2812.6,9.149519]
[1749675534044,0.8274,2813.1,2812.4,0.8281]
[1749675534288,0.8274,2813.1,2812.2,0.8281]
[1749675534289,9.148819,2813.1,2812.2,0.8281]
[1749675534439,8.321419,2812.7,2812.0,0.8109]
[1749675534639,8.321419,2812.7,2811.8,0.8109]
[1749675534640,0.8226,2812.5,2811.8,0.8109]
[1749675534843,9.144019,2812.5,2811.8,0.8109]
[1749675535157,9.144019,2812.5,2811.5,4.79997977]
[1749675535472,4.4626,2812.4,2811.5,1.16197977]
[1749675535671,4.4626,2812.4,2811.6,10.0]
[1749675535973,2.18421609,2812.4,2811.8,10.0]
[1749675536132,4.4656,2812.4,2811.8,10.0]
[1749675537367,4.4656,2812.4,2811.7,10.0]
[1749675538834,4.4656,2812.4,2811.6,10.0]
[1749675539294,4.4656,2812.4,2811.7,8.321419]
[1749675539436,0.8226,2812.4,2811.7,8.321419]
[1749675539772,4.4646,2812.4,2811.8,10.0]
[1749675540127,0.8226,2812.4,2811.8,10.0]
[1749675540370,3.641,2812.5,2812.0,0.8061]
[1749675540831,3.641,2812.5,2812.0,0.9837]
[1749675542234,0.1776,2812.6,2812.0,0.9837]
[1749675542438,3.8186,2812.6,2812.1,8.32487253]
[1749675543070,3.8186,2812.6,2812.1,0.00345353]
[1749675543777,3.8166,2812.6,2812.1,0.00345353]
[1749675545180,3.8166,2812.6,2812.1,8.32487253]
[1749675546098,0.1776,2812.6,2812.1,0.00345353]
[1749675546592,9.73474789,2813.8,2812.5,0.1776]
[1749675546593,3.637,2812.8,2812.5,0.1776]
[1749675546758,1.8821,2813.0,2812.5,0.1776]
[1749675546759,5.5221,2813.0,2812.5,0.1776]
[1749675547160,5.5221,2813.0,2812.6,0.00471708]
[1749675549203,5.3445,2813.0,2812.6,0.00471708]
[1749675549410,0.53445,2812.9,2812.6,0.00471708]
[1749675549578,1.7045,2813.0,2812.6,0.00471708]
[1749675549762,5.3425,2813.0,2812.6,0.00471708]
[1749675550388,1.7045,2813.0,2812.6,0.00471708]
[1749675550805,5.3425,2813.0,2812.6,0.00471708]
[1749675551409,0.7575,2813.0,2812.6,0.00471708]
[1749675551713,1.7185,2813.3,2812.7,8.321419]
[1749675553811,3.82207223,2813.5,2812.9,8.321419]
[1749675553812,0.18507223,2813.5,2812.9,8.321419]
[1749675555484,0.18507223,2813.5,2813.0,10.0]
[1749675555683,0.18507223,2813.5,2812.8,0.7859]
[1749675555872,0.18507223,2813.5,2813.1,0.00626668]
[1749675556205,4.3862,2813.8,2813.1,0.00626668]
[1749675558176,4.5638,2813.8,2813.3,0.1776]
[1749675558601,4.5638,2813.8,2813.4,0.00626601]
[1749675559569,0.7755,2814.1,2813.5,0.8121]
[1749675559773,0.7755,2814.1,2813.5,1.7438385]
[1749675560016,4.4125,2814.1,2813.5,11.7438385]
[1749675560214,4.4125,2814.1,2813.6,0.00345169]
[1749675561482,8.321419,2813.9,2813.6,0.00345169]
[1749675561685,0.8321419,2813.8,2813.6,0.00345169]
[1749675562322,12.733919,2814.1,2813.6,0.00345169]
[1749675562482,4.4125,2814.1,2813.6,0.00345169]
[1749675568435,3.635,2814.0,2813.6,0.00345169]
[1749675569695,0.1776,2814.0,2813.6,0.00345169]
[1749675569895,3.635,2813.9,2813.6,0.00345169]
[1749675570201,0.1776,2814.0,2813.6,0.00345169]
[1749675570410,1.13106379,2814.3,2813.7,0.7692]
[1749675570593,1.13106379,2814.3,2813.9,0.1776]
[1749675571027,1.13106379,2814.3,2814.0,0.00471473]
[1749675571332,1.13106379,2814.3,2814.1,0.7864]
[1749675571531,0.18506379,2814.3,2814.1,10.964]
[1749675571734,3.8126,2814.8,2814.1,12.57210323]
[1749675572038,0.1776,2814.8,2814.2,8.3261334]
[1749675572408,0.1776,2814.8,2814.3,0.1776]
[1749675572922,0.1776,2814.8,2814.4,0.00471406]
[1749675575944,0.1776,2814.8,2814.5,0.8152]
[1749675576328,0.18502574,2815.1,2814.5,0.8152]
[1749675576656,3.635,2815.0,2814.6,0.1776]
[1749675577110,3.8126,2815.1,2814.6,0.1776]
[1749675577851,3.8126,2815.1,2814.7,0.00202938]
[1749675580341,0.7593,2814.8,2814.7,0.00202938]
[1749675581117,1.3093,2814.8,2814.7,0.00202938]
[1749675581331,2.64611912,2814.8,2814.7,0.00202938]
[1749675581637,10.96753812,2814.8,2814.7,0.00202938]
[1749675581856,10.41753812,2814.8,2814.7,0.00202938]
[1749675582907,10.96753812,2814.8,2814.7,0.00202938]
[1749675585044,2.64611912,2814.8,2814.7,0.00202938]
[1749675585369,6.31771912,2814.8,2814.7,0.00202938]
[1749675585579,9.87036939,2814.8,2814.7,0.00202938]
[1749675585782,7.16537831,2814.8,2814.7,0.00202938]
[1749675585934,10.71802858,2814.8,2814.7,0.00202938]
[1749675586134,20.71802858,2814.8,2814.7,0.00202938]
[1749675590278,13.92737831,2814.8,2814.7,0.00202938]
[1749675590481,17.56137831,2814.8,2814.7,0.00202938]
[1749675590683,18.11137831,2814.8,2814.7,0.00202938]
[1749675590884,8.11137831,2814.8,2814.7,0.00202938]
[1749675591084,7.26371912,2814.8,2814.7,0.00202938]
[1749675592664,6.71371912,2814.8,2814.7,0.00202938]
[1749675593361,5.3769,2814.8,2814.7,0.00202938]
[1749675593567,17.25096927,2814.8,2814.7,0.00202938]
[1749675593764,17.80096927,2814.8,2814.7,0.00202938]
[1749675594092,10.32720946,2814.8,2814.7,0.00202938]
[1749675594647,3.14055919,2814.8,2814.7,0.00202938]
[1749675594977,7.36528461,2814.8,2814.7,0.00202938]
[1749675595294,3.634,2814.8,2814.7,0.00202938]
[1749675596767,4.48271999,2814.8,2814.7,0.00202938]
[1749675599419,0.84871999,2814.8,2814.7,0.00202938]
[1749675599625,3.634,2814.8,2814.7,0.00202938]
[1749675600167,0.946,2814.9,2814.7,0.00202938]
[1749675600479,3.634,2814.8,2814.7,0.78772938]
[1749675600684,3.8116,2814.8,2814.7,0.78772938]
[1749675600898,3.8116,2814.8,2814.7,0.00202938]
[1749675603409,0.1776,2814.8,2814.7,0.00202938]
[1749675603583,3.8116,2814.8,2814.7,0.00202938]
[1749675604005,3.634,2814.8,2814.7,0.00202938]
[1749675605511,0.18506655,2815.0,2814.8,0.7747]
[1749675605814,3.634,2814.9,2814.8,0.7747]
[1749675610708,0.18506655,2815.0,2814.8,0.7747]
[1749675610913,3.634,2814.9,2814.8,0.7747]
[1749675611217,3.81906655,2815.0,2814.8,0.7747]
[1749675611519,3.634,2815.0,2814.8,0.7747]
[1749675613284,3.8106,2815.1,2814.8,0.7747]
[1749675614813,0.1776,2815.1,2814.8,0.7747]
[1749675615126,3.8106,2815.1,2814.8,0.7747]
[1749675615486,3.633,2815.2,2814.8,9.096119]
[1749675615694,0.1768,2815.4,2815.0,0.8141]
[1749675615997,3.8098,2815.4,2815.0,0.8141]
[1749675616412,0.18506093,2815.5,2815.0,0.8141]
[1749675616615,3.8098,2815.7,2815.3,0.7846]
[1749675616824,0.1768,2815.7,2815.3,0.7846]
[1749675617028,0.946,2815.8,2815.4,0.1768]
[1749675617387,0.1768,2815.9,2815.5,0.7846]
[1749675617595,3.633,2816.0,2815.5,0.7846]
[1749675617787,3.633,2816.0,2815.6,0.18065845]
[1749675618722,0.1768,2816.1,2815.7,0.7821]
[1749675619289,1.13100731,2816.4,2815.8,0.00385818]
[1749675619496,0.18500731,2816.4,2816.1,0.7821]
[1749675619826,3.8098,2816.7,2816.2,0.1768]
[1749675619992,3.8098,2816.7,2816.2,0.18065763]
[1749675620201,0.1768,2816.7,2816.2,0.18065763]
[1749675623323,0.1768,2816.7,2816.3,0.811]
[1749675623727,0.18496655,2816.9,2816.3,0.811]
[1749675623728,0.36176655,2816.9,2816.4,0.7972565]
[1749675624029,0.69437025,2816.9,2816.4,0.7972565]
[1749675624328,0.69437025,2816.9,2816.4,0.1768]
[1749675624329,0.36176655,2816.9,2816.4,0.1768]
[1749675624929,0.69437063,2816.9,2816.4,0.1768]
[1749675625108,0.69437184,2816.9,2816.4,0.1768]
[1749675625306,0.36176655,2816.9,2816.4,0.1768]
[1749675625503,0.69437415,2816.9,2816.4,0.1768]
[1749675626109,1.02698189,2816.9,2816.4,0.1768]
[1749675626334,0.69437415,2816.9,2816.4,0.1768]
[1749675626534,1.02698016,2816.9,2816.4,0.1768]
[1749675626833,0.69437415,2816.9,2816.4,0.1768]
[1749675627038,1.02698037,2816.9,2816.4,0.1768]
[1749675627230,0.69437415,2816.9,2816.4,0.1768]
[1749675627436,1.02698029,2816.9,2816.4,0.1768]
[1749675627634,0.69437415,2816.9,2816.4,0.1768]
[1749675628203,1.02697837,2816.9,2816.4,0.1768]
[1749675628429,0.69437415,2816.9,2816.4,0.1768]
[1749675629940,0.69437415,2816.9,2816.5,0.8271]
[1749675630142,1.02697856,2816.9,2816.5,0.8271]
[1749675630337,0.69437415,2816.9,2816.5,0.8271]
[1749675630903,0.51757415,2816.9,2816.6,0.1768]
[1749675631805,8.83899315,2816.9,2816.6,0.1768]
[1749675632237,0.51757415,2816.9,2816.6,0.1768]
[1749675632747,0.85018042,2816.9,2816.6,0.1768]
[1749675632934,0.51757415,2816.9,2816.6,0.1768]
[1749675633305,0.85018131,2816.9,2816.6,0.1768]
[1749675633504,0.51757415,2816.9,2816.6,0.1768]
[1749675633736,1.89318418,2816.9,2816.6,0.1768]
[1749675634039,8.321419,2816.8,2816.2,5.4807]
[1749675634243,3.8078,2816.7,2816.2,5.6575]
[1749675636554,3.8078,2816.7,2816.2,0.9875]
[1749675637824,0.1768,2816.7,2816.2,0.9875]
[1749675638051,3.631,2816.7,2816.3,0.1768]
[1749675638364,3.631,2816.7,2816.4,0.758]
[1749675638569,3.8078,2816.8,2816.4,0.758]
[1749675639645,0.1768,2816.8,2816.4,0.758]
[1749675639983,3.8078,2816.8,2816.4,0.758]
[1749675640675,0.51757415,2816.9,2816.4,0.758]
[1749675640884,0.51757415,2816.9,2816.6,0.1768]
[1749675641243,0.51757415,2816.9,2816.7,0.758]
[1749675643143,0.3326076,2816.9,2816.7,0.758]
[1749675643713,0.3326076,2816.9,2816.8,0.1768]
[1749675662626,0.3326076,2816.9,2816.8,0.18065681]
[1749675664335,0.3326076,2816.9,2816.8,0.18065681]
[1749675666147,0.3326076,2816.9,2816.8,0.00385681]
[1749675676616,4.19394971,2816.9,2816.8,0.00385681]
[1749675676815,5.82881118,2816.9,2816.8,0.00385681]
[1749675678907,19.37881295,2816.9,2816.8,0.00385681]
[1749675679117,20.99118499,2816.9,2816.8,0.00385681]
[1749675679341,19.92881295,2816.9,2816.8,0.00385681]
[1749675679704,20.99152504,2816.9,2816.8,0.00385681]
[1749675680004,17.44152327,2816.9,2816.8,0.00385681]
[1749675680239,20.99152504,2816.9,2816.8,0.00385681]
[1749675680409,17.44152327,2816.9,2816.8,0.00385681]
[1749675681833,16.37881118,2816.9,2816.8,0.00385681]
[1749675683224,19.92881295,2816.9,2816.8,0.00385681]
[1749675683423,22.06081295,2816.9,2816.8,0.00385681]
[1749675683613,19.92881295,2816.9,2816.8,0.00385681]
[1749675684315,25.64423018,2816.9,2816.8,0.00385681]
[1749675684512,30.60914429,2816.9,2816.8,0.00385681]
[1749675684730,29.19423195,2816.9,2816.8,0.00385681]
[1749675685133,24.62123195,2816.9,2816.8,0.00385681]
[1749675685333,29.19423195,2816.9,2816.8,0.00385681]
[1749675685560,22.01523018,2816.9,2816.8,0.00385681]
[1749675685765,5.82881118,2816.9,2816.8,0.00385681]
[1749675685973,4.7453076,2816.9,2816.8,0.00385681]
[1749675686267,3.9616076,2816.9,2816.8,0.00385681]
[1749675687622,0.3326076,2816.9,2816.8,0.00385681]
[1749675687818,3.9616076,2816.9,2816.8,0.00385681]
[1749675689370,0.3326076,2816.9,2816.8,0.00385681]
[1749675689532,3.9616076,2816.9,2816.8,0.00385681]
[1749675691166,0.3326076,2816.9,2816.8,0.00385681]
[1749675691366,3.9616076,2816.9,2816.8,0.00385681]
[1749675692652,0.3326076,2816.9,2816.8,0.00385681]
[1749675693363,0.3326076,2816.9,2816.8,0.18065681]
[1749675725711,0.3326076,2816.9,2816.8,9.33347581]
[1749675726011,0.3326076,2816.9,2816.8,21.26682339]
[1749675726922,0.3326076,2816.9,2816.8,21.09002339]
[1749675730224,0.8512337,2817.9,2816.8,29.96144239]
[1749675730411,0.8512337,2818.7,2817.8,10.8268]
[1749675730742,0.7989,2818.8,2817.9,0.8268]
[1749675730903,9.120319,2818.8,2818.0,0.52500272]
[1749675731411,3.626,2818.8,2818.1,0.7552]
[1749675731582,0.18482695,2818.9,2818.1,0.7552]
[1749675731783,0.18482695,2818.9,2818.1,10.7552]
[1749675731983,0.18482695,2818.9,2818.2,11.93334758]
[1749675732724,0.18482695,2818.9,2818.3,0.7552]
[1749675733023,0.18482695,2818.9,2818.5,10.0]
[1749675735740,0.18482695,2818.9,2818.8,0.1768]
[1749675736499,9.304519,2819.3,2818.8,0.1768]
[1749675736998,0.18479148,2819.2,2818.8,0.1768]
[1749675737505,8.321419,2819.1,2818.8,0.1768]
[1749675738812,8.50621048,2819.2,2818.8,0.1768]
[1749675739140,3.80979148,2819.2,2818.8,0.9849]
[1749675739334,0.18479148,2819.2,2818.8,0.9849]
[1749675740744,0.1768,2819.5,2819.0,0.1768]
[1749675741041,0.18477061,2819.5,2819.1,0.7514]
[1749675741255,3.624,2819.8,2819.4,0.1768]
[1749675741552,8.498219,2819.9,2819.4,0.1768]
[1749675741759,12.122219,2819.9,2819.4,0.1768]
[1749675741953,8.498219,2819.9,2819.4,0.1768]
[1749675742155,12.122219,2819.9,2819.4,0.1768]
[1749675742638,0.1768,2819.9,2819.4,0.1768]
[1749675742842,0.943,2820.1,2819.5,0.7514]
[1749675743048,9.264419,2820.1,2819.7,0.1768]
[1749675743866,12.888419,2820.1,2819.7,0.1768]
[1749675744515,8.321419,2819.9,2819.7,0.1768]
[1749675744888,8.321419,2819.9,2819.4,0.1768]
[1749675744889,8.498219,2819.9,2819.4,0.1768]
[1749675745153,8.321419,2819.7,2819.4,0.1768]
[1749675745328,11.944419,2819.7,2819.4,0.1768]
[1749675746252,8.321419,2819.5,2818.9,0.7768]
[1749675746440,8.321419,2819.3,2819.0,0.1768]
[1749675746643,8.321419,2819.3,2818.6,0.7628]
[1749675746850,8.498219,2819.3,2818.8,0.1768]
[1749675747043,3.623,2819.2,2818.8,0.1768]
[1749675748934,12.709819,2819.2,2818.8,0.1768]
[1749675749135,11.944419,2819.2,2818.8,0.1768]
[1749675751160,3.623,2819.2,2818.8,0.1768]
[1749675751831,11.944419,2819.2,2818.8,0.1768]
[1749675753141,12.27643763,2819.2,2818.8,0.1768]
[1749675753337,11.944419,2819.2,2818.8,0.1768]
[1749675753767,12.27643433,2819.2,2818.8,0.1768]
[1749675753965,11.944419,2819.2,2818.8,0.1768]
[1749675754340,13.2330809,2819.2,2818.8,0.1768]
[1749675754887,13.56509887,2819.2,2818.8,0.1768]
[1749675755062,13.56509882,2819.2,2818.8,0.1768]
[1749675755243,13.2330809,2819.2,2818.8,0.1768]
[1749675756837,13.56510137,2819.2,2818.8,0.1768]
[1749675757078,13.2330809,2819.2,2818.8,0.1768]
[1749675757263,13.56510188,2819.2,2818.8,0.1768]
[1749675757467,13.2330809,2819.2,2818.8,0.1768]
[1749675758067,13.56509893,2819.2,2818.8,0.1768]
[1749675758274,13.2330809,2819.2,2818.8,0.1768]
[1749675761054,13.56509921,2819.2,2818.8,0.1768]
[1749675761255,13.2330809,2819.2,2818.8,0.1768]
[1749675762478,4.9116619,2819.2,2818.8,0.1768]
[1749675762774,5.24368095,2819.2,2818.8,0.1768]
[1749675762981,4.9116619,2819.2,2818.8,0.1768]
[1749675763573,5.24368222,2819.2,2818.8,0.1768]
[1749675763773,5.24368211,2819.2,2818.8,0.1768]
[1749675763972,4.9116619,2819.2,2818.8,0.1768]
[1749675764485,5.24368032,2819.2,2818.8,0.1768]
[1749675764661,4.9116619,2819.2,2818.8,0.1768]
[1749675764859,9.66240709,2819.1,2818.4,10.0]
[1749675765192,4.5766,2819.0,2818.5,0.1768]
[1749675765390,8.321419,2818.9,2818.5,0.1768]
[1749675765691,3.623,2818.8,2818.5,0.1768]
[1749675767685,0.8139,2818.6,2818.3,0.1768]
[1749675767849,3.622,2818.5,2818.3,0.1768]
[1749675768792,0.33196545,2819.0,2818.3,0.1768]
[1749675768793,1.66232574,2819.2,2818.4,0.7911]
[1749675768956,3.623,2819.0,2818.4,0.7911]
[1749675769148,3.95493249,2819.0,2818.4,0.7911]
[1749675769382,3.623,2819.0,2818.4,0.7911]
[1749675769851,3.95492874,2819.0,2818.4,0.7911]
[1749675770150,3.623,2819.0,2818.4,0.7911]
[1749675770762,3.622,2818.9,2818.4,0.7911]
[1749675771165,3.622,2818.9,2818.4,1.87021]
[1749675774356,3.622,2818.9,2818.4,0.7911]
[1749675777069,3.622,2818.9,2818.2,0.8222]
[1749675777070,11.943419,2818.9,2818.2,0.8222]
[1749675777590,9.139919,2818.7,2818.2,0.8222]
[1749675777798,9.139919,2818.7,2818.0,10.8222]
[1749675777996,9.139919,2818.7,2818.0,12.37142]
[1749675778489,9.139919,2818.7,2818.0,2.37142]
[1749675778901,9.316719,2818.7,2818.2,0.1768]
[1749675780171,3.622,2818.6,2818.2,0.1768]
[1749675783304,8.321419,2818.4,2818.2,0.1768]
[1749675783471,9.6925609,2818.4,2817.9,0.1768]
[1749675783669,8.498219,2818.4,2817.9,0.1768]
[1749675784370,3.622,2818.3,2817.9,0.1768]
[1749675785075,9.139919,2818.7,2817.8,10.7819]
[1749675785268,3.622,2818.6,2818.2,0.1768]
[1749675785504,0.1768,2818.8,2818.3,0.7819]
[1749675785807,0.769,2819.2,2818.4,0.1768]
[1749675785970,0.18482282,2818.9,2818.7,0.1768]
[1749675786165,3.622,2819.2,2818.7,0.1768]
[1749675787495,0.1768,2819.3,2818.7,0.1768]
[1749675787699,0.1768,2819.3,2819.0,0.1768]
[1749675787700,3.622,2819.3,2819.0,0.1768]
[1749675788011,12.30501761,2819.5,2819.0,0.1768]
[1749675788415,3.98359861,2819.5,2819.0,0.1768]
[1749675789073,3.622,2819.4,2819.1,0.8018]
[1749675789372,0.36159861,2819.5,2819.1,0.8018]
[1749675789770,0.18479861,2819.5,2819.1,0.8018]